fUST/lending_fUST_20250215
["ID","MTS","AMOUNT","RATE_DAILY","PERIOD"]
[353154032,1739614247295,-500.0,8.851e-05,2]
[353154034,1739614247305,-500.0,8.851e-05,2]
[353154036,1739614247314,-529.68685126,8.851e-05,2]
[353154038,1739614247324,-529.68685126,8.851e-05,2]
[353154039,1739614247333,-500.0,8.851e-05,2]
[353154041,1739614247342,-529.68685126,8.851e-05,2]
[353154044,1739614247352,-500.0,8.851e-05,2]
[353154045,1739614247362,-529.68685126,8.851e-05,2]
[353154047,1739614247372,-494.34699739,8.851e-05,2]
[353154049,1739614247383,-529.68685126,8.851e-05,2]
[353154052,1739614247395,-500.0,8.851e-05,2]
[353154054,1739614247405,-529.68685126,8.851e-05,2]
[353154056,1739614247414,-500.0,8.851e-05,2]
[353154058,1739614247424,-529.68685126,8.851e-05,2]
[353154060,1739614247435,-500.0,8.851e-05,2]
[353154062,1739614247445,-529.68685126,8.851e-05,2]
[353154064,1739614247455,-500.0,8.851e-05,2]
[353154066,1739614247466,-529.68685126,8.851e-05,2]
[353154068,1739614247477,-500.0,8.851e-05,2]
[353154070,1739614247487,-500.0,8.851e-05,2]
[353154072,1739614247497,-529.68685126,8.851e-05,2]
[353154074,1739614247506,-500.0,8.851e-05,2]
[353154076,1739614247516,-529.68685126,8.851e-05,2]
[353154078,1739614247525,-500.0,8.851e-05,2]
[353154080,1739614247536,-529.68685126,8.851e-05,2]
[353154082,1739614247547,-500.0,8.851e-05,2]
[353154084,1739614247558,-529.68685126,8.851e-05,2]
[353154087,1739614247568,-500.0,8.851e-05,2]
[353154088,1739614247577,-529.68685126,8.851e-05,2]
[353154091,1739614247589,-500.0,8.851e-05,2]
[353154093,1739614247598,-529.68685126,8.851e-05,2]
[353154095,1739614247607,-500.0,8.851e-05,2]
[353154097,1739614247617,-529.68685126,8.851e-05,2]
[353154099,1739614247627,-529.68685126,8.851e-05,2]
[353154101,1739614247636,-500.0,8.851e-05,2]
[353154103,1739614247645,-529.68685126,8.851e-05,2]
[353154105,1739614247655,-529.68685126,8.851e-05,2]
[353154107,1739614247664,-529.68685126,8.851e-05,2]
[353154109,1739614247674,-529.68685126,8.851e-05,2]
[353154111,1739614247683,-529.68685126,8.851e-05,2]
[353154113,1739614247693,-529.68685126,8.851e-05,2]
[353154115,1739614247703,-529.68685126,8.851e-05,2]
[353154117,1739614247712,-529.68685126,8.851e-05,2]
[353154119,1739614247721,-529.68685126,8.851e-05,2]
[353154121,1739614247730,-529.68685126,8.851e-05,2]
[353154122,1739614247741,-500.0,8.851e-05,2]
[353154124,1739614247750,-529.68685126,8.851e-05,2]
[353154125,1739614247759,-529.68685126,8.851e-05,2]
[353154126,1739614247769,-529.68685126,8.851e-05,2]
[353154128,1739614247778,-529.68685126,8.851e-05,2]
[353154130,1739614247787,-529.68685126,8.851e-05,2]
[353154132,1739614247796,-529.68685126,8.851e-05,2]
[353154134,1739614247805,-529.68685126,8.851e-05,2]
[353154136,1739614247815,-529.68685126,8.851e-05,2]
[353154138,1739614247824,-529.68685126,8.851e-05,2]
[353154140,1739614247833,-529.68685126,8.851e-05,2]
[353154142,1739614247843,-529.68685126,8.851e-05,2]
[353154144,1739614247852,-529.68685126,8.851e-05,2]
[353154146,1739614247861,-529.68685126,8.851e-05,2]
[353154148,1739614247871,-529.68685126,8.851e-05,2]
[353154150,1739614247880,-529.68685126,8.851e-05,2]
[353154152,1739614247889,-215.9483191,8.91e-05,2]
[353154154,1739614247899,-500.0,8.929e-05,2]
[353154156,1739614247908,-4417.35,8.929e-05,2]
[353154158,1739614247917,-500.0,8.93e-05,2]
[353154160,1739614247926,-14224.14375936,8.932e-05,2]
[353154162,1739614247936,-500.0,8.932e-05,2]
[353154164,1739614247945,-70688.79,8.932e-05,2]
[353154166,1739614247954,-3671.16,8.932e-05,2]
[353154168,1739614247964,-4007.73,8.932e-05,2]
[353154170,1739614247973,-500.0,8.932e-05,2]
[353154172,1739614247982,-505.69,8.932e-05,2]
[353154174,1739614247991,-2553.63,8.932e-05,2]
[353154176,1739614247999,-1204.81,8.932e-05,2]
[353154178,1739614248008,-500.0,8.932e-05,2]
[353154180,1739614248017,-1357.2,8.932e-05,2]
[353154182,1739614248026,-500.0,8.932e-05,2]
[353154184,1739614248035,-1282.62,8.932e-05,2]
[353154186,1739614248044,-2400.47,8.932e-05,2]
[353154188,1739614248054,-500.0,8.932e-05,2]
[353154190,1739614248063,-840.09,8.932e-05,2]
[353154192,1739614248073,-830.17,8.932e-05,2]
[353154194,1739614248084,-24103.87,8.932e-05,2]
[353154196,1739614248094,-2427.69,8.932e-05,2]
[353154198,1739614248104,-500.0,8.933e-05,2]
[353154200,1739614248113,-300.0,8.935e-05,2]
[353154202,1739614248124,-150.121,8.939e-05,2]
[353154204,1739614248134,-150.183,8.939e-05,2]
[353154206,1739614248143,-150.375,8.939e-05,2]
[353154208,1739614248153,-150.595,8.939e-05,2]
[353154210,1739614248163,-153.0,8.94e-05,2]
[353154212,1739614248173,-154.6845572,8.94e-05,2]
[353154214,1739614248183,-306.3982474,8.94e-05,2]
[353154216,1739614248193,-176.4513059,8.94e-05,2]
[353154218,1739614248203,-153.0,8.94e-05,2]
[353154220,1739614248213,-215.9483191,8.94e-05,2]
[353154222,1739614248223,-355.0331824,8.94e-05,2]
[353154224,1739614248233,-153.0,8.94e-05,2]
[353154227,1739614248245,-215.9483191,8.94e-05,2]
[353154229,1739614248255,-437.9511402,8.94e-05,2]
[353154231,1739614248266,-355.0331824,8.94e-05,2]
[353154233,1739614248276,-282.5486941,8.94e-05,2]
[353154235,1739614248286,-153.0,8.94e-05,2]
[353154237,1739614248295,-431.8966382,8.94e-05,2]
[353154239,1739614248305,-153.0,8.94e-05,2]
[353154241,1739614248314,-306.0,8.94e-05,2]
[353154243,1739614248323,-355.0331824,8.94e-05,2]
[353154245,1739614248333,-310.4245019,8.94e-05,2]
[353154247,1739614248342,-153.0,8.94e-05,2]
[353154249,1739614248351,-215.9483191,8.94e-05,2]
[353154251,1739614248361,-203.64920814,8.942e-05,2]
[353154253,1739614248370,-500.0,8.942e-05,2]
[353154255,1739614248379,-500.0,8.942e-05,2]
[353154257,1739614248392,-246.22667086,8.942e-05,2]
[353154259,1739614248402,-500.0,8.942e-05,2]
[353154260,1739614248411,-500.0,8.942e-05,2]
[353154262,1739614248421,-587.23075884,8.942e-05,2]
[353154265,1739614248431,-160.0,8.943e-05,2]
[353154267,1739614248441,-500.57961405,8.943e-05,2]
[353154268,1739614248450,-506.94687044,8.943e-05,2]
[353154270,1739614248460,-500.70106138,8.943e-05,2]
[353154273,1739614248471,-500.0,8.943e-05,2]
[353154275,1739614248481,-500.0,8.943e-05,2]
[353154277,1739614248491,-500.0,8.943e-05,2]
[353154279,1739614248500,-151.0,8.943e-05,2]
[353154281,1739614248511,-155.0,8.943e-05,2]
[353154283,1739614248521,-500.0,8.943e-05,2]
[353154285,1739614248531,-160.0,8.943e-05,2]
[353154287,1739614248542,-267.5,8.943e-05,2]
[353154289,1739614248553,-155.0,8.943e-05,2]
[353154291,1739614248563,-151.0,8.943e-05,2]
[353154293,1739614248573,-151.0,8.943e-05,2]
[353154295,1739614248583,-151.0,8.943e-05,2]
[353154297,1739614248593,-160.0,8.943e-05,2]
[353154299,1739614248603,-152.0,8.943e-05,2]
[353154301,1739614248614,-160.0,8.943e-05,2]
[353154303,1739614248624,-345.0,8.943e-05,2]
[353154305,1739614248635,-160.0,8.943e-05,2]
[353154307,1739614248645,-151.0,8.943e-05,2]
[353154309,1739614248655,-162.0,8.943e-05,2]
[353154311,1739614248665,-210.0,8.943e-05,2]
[353154313,1739614248675,-158.5,8.943e-05,2]
[353154315,1739614248685,-160.0,8.943e-05,2]
[353154317,1739614248695,-500.0,8.943e-05,2]
[353154319,1739614248705,-151.0,8.943e-05,2]
[353154321,1739614248716,-169.89489391,8.943e-05,2]
[353154323,1739614248726,-151.0,8.943e-05,2]
[353154325,1739614248737,-151.0,8.943e-05,2]
[353154328,1739614248747,-160.0,8.943e-05,2]
[353154330,1739614248757,-160.0,8.943e-05,2]
[353154331,1739614248766,-151.0,8.943e-05,2]
[353154333,1739614248776,-290.721164,8.943e-05,2]
[353154336,1739614248785,-152.0,8.943e-05,2]
[353154337,1739614248795,-160.0,8.943e-05,2]
[353154340,1739614248805,-151.0,8.943e-05,2]
[353154342,1739614248814,-267.5162689,8.943e-05,2]
[353154344,1739614248826,-151.0,8.943e-05,2]
[353154346,1739614248835,-160.0,8.943e-05,2]
[353154348,1739614248845,-161.0,8.943e-05,2]
[353154350,1739614248855,-150.5,8.943e-05,2]
[353154352,1739614248864,-151.0,8.943e-05,2]
[353154353,1739614248875,-160.0,8.943e-05,2]
[353154356,1739614248885,-159.97,8.943e-05,2]
[353154358,1739614248896,-151.0,8.943e-05,2]
[353154360,1739614248906,-266.0124538,8.943e-05,2]
[353154362,1739614248916,-160.0,8.943e-05,2]
[353154364,1739614248925,-177.3729,8.943e-05,2]
[353154365,1739614248936,-160.0,8.943e-05,2]
[353154368,1739614248947,-267.5,8.943e-05,2]
[353154370,1739614248957,-163.302,8.943e-05,2]
[353154371,1739614248967,-155.0,8.943e-05,2]
[353154374,1739614248977,-258.5,8.943e-05,2]
[353154375,1739614248987,-500.0,8.943e-05,2]
[353154377,1739614248997,-200.0,8.943e-05,2]
[353154379,1739614249007,-160.0,8.943e-05,2]
[353154382,1739614249017,-160.030568,8.943e-05,2]
[353154384,1739614249026,-151.0,8.943e-05,2]
[353154385,1739614249036,-200.02188756,8.943e-05,2]
[353154387,1739614249045,-311.93088566,8.943e-05,2]
[353154389,1739614249055,-500.80430822,8.943e-05,2]
[353154391,1739614249066,-500.0,8.943e-05,2]
[353154393,1739614249076,-500.0,8.943e-05,2]
[353154406,1739614249201,-139660.31920675,8.943e-05,2]
[353154408,1739614249214,-2233.0,8.946e-05,2]
[353154410,1739614249225,-2230.0,8.946e-05,2]
[353154412,1739614249235,-2230.0,8.946e-05,2]
[353154414,1739614249245,-2230.0,8.946e-05,2]
[353154416,1739614249255,-500.0,8.949e-05,2]
[353154418,1739614249265,-500.0,8.949e-05,2]
[353154420,1739614249275,-500.0,8.949e-05,2]
[353154422,1739614249285,-150.06,8.949e-05,2]
[353154424,1739614249296,-150.06,8.949e-05,2]
[353154426,1739614249307,-152.40331612,8.949e-05,2]
[353154429,1739614249317,-150.06,8.949e-05,2]
[353154430,1739614249327,-150.06,8.949e-05,2]
[353154432,1739614249336,-975.0,8.949e-05,2]
[353154434,1739614249347,-150.06,8.949e-05,2]
[353154436,1739614249357,-150.06,8.949e-05,2]
[353154439,1739614249367,-637.0,8.949e-05,2]
[353154441,1739614249377,-150.06,8.949e-05,2]
[353154442,1739614249390,-500.0,8.949e-05,2]
[353154445,1739614249401,-500.0,8.949e-05,2]
[353154446,1739614249412,-500.0,8.949e-05,2]
[353154449,1739614249423,-500.0,8.949e-05,2]
[353154451,1739614249434,-150.06,8.949e-05,2]
[353154452,1739614249444,-150.06,8.949e-05,2]
[353154455,1739614249455,-150.06,8.949e-05,2]
[353154456,1739614249464,-150.42175569,8.949e-05,2]
[353154459,1739614249475,-153.0,8.95e-05,2]
[353154461,1739614249486,-153.0,8.95e-05,2]
[353154463,1739614249497,-153.0,8.95e-05,2]
[353154464,1739614249511,-316.9103676,8.95e-05,2]
[353154467,1739614249521,-153.0,8.95e-05,2]
[353154469,1739614249531,-153.0,8.95e-05,2]
[353154471,1739614249542,-153.0,8.95e-05,2]
[353154473,1739614249552,-215.9483191,8.95e-05,2]
[353154475,1739614249562,-503.896921,8.95e-05,2]
[353154477,1739614249572,-153.0,8.95e-05,2]
[353154478,1739614249581,-306.0,8.95e-05,2]
[353154480,1739614249591,-154.6845572,8.95e-05,2]
[353154482,1739614249601,-240.6344599,8.95e-05,2]
[353154485,1739614249610,-215.9483191,8.95e-05,2]
[353154487,1739614249620,-263.6898724,8.95e-05,2]
[353154489,1739614249629,-215.9483191,8.95e-05,2]
[353154490,1739614249639,-153.0,8.95e-05,2]
[353154492,1739614249648,-215.9483191,8.95e-05,2]
[353154495,1739614249658,-153.6079061,8.95e-05,2]
[353154497,1739614249668,-153.0,8.95e-05,2]
[353154499,1739614249677,-154.6845572,8.95e-05,2]
[353154501,1739614249687,-215.9483191,8.95e-05,2]
[353154503,1739614249697,-153.0,8.95e-05,2]
[353154505,1739614249706,-153.0,8.95e-05,2]
[353154507,1739614249716,-154.6845572,8.95e-05,2]
[353154509,1739614249727,-215.9483191,8.95e-05,2]
[353154511,1739614249738,-215.9483191,8.95e-05,2]
[353154513,1739614249747,-154.6845572,8.95e-05,2]
[353154515,1739614249757,-215.9483191,8.95e-05,2]
[353154517,1739614249767,-153.0,8.95e-05,2]
[353154519,1739614249778,-431.8966382,8.95e-05,2]
[353154522,1739614249788,-17382.28905544,8.96e-05,2]
[353154524,1739614249798,-3209854.15504442,8.963e-05,2]
[353154526,1739614249814,-8826.74414909,8.963e-05,2]
[353154691,1739614251601,18619.163676,7.967e-05,2]
[353157380,1739614314300,242.3522434,8.845e-05,2]
[353157382,1739614356800,1000.0,0.00018233,30]
[353157383,1739614357393,1000.0,0.00018233,30]
[353157384,1739614357783,1000.0,0.00018233,30]
[353157385,1739614358157,1000.0,0.00018233,30]
[353157386,1739614358590,1000.0,0.00018233,30]
[353157387,1739614358927,1187.7088,0.00018233,30]
[353157388,1739614368935,2000.0,0.00018233,30]
[353157389,1739614369322,2000.0,0.00018233,30]
[353157390,1739614369907,842.899999,0.00018233,30]
[353157391,1739614370446,2000.0,0.00018233,30]
[353157392,1739614370854,2000.0,0.00018233,30]
[353157393,1739614371662,842.899999,0.00018233,30]
[353157394,1739614442319,300.0,8.845e-05,2]
[353157396,1739614503822,300.0,8.845e-05,2]
[353157398,1739614563521,300.0,8.845e-05,2]
[353157399,1739614623069,300.0,8.845e-05,2]
[353157403,1739614682363,300.0,8.845e-05,2]
[353157405,1739614744823,300.0,8.845e-05,2]
[353157406,1739614804143,300.0,8.845e-05,2]
[353157407,1739614863491,300.0,8.845e-05,2]
[353157408,1739614868668,3475.86,8.845e-05,2]
[353157409,1739614879199,917.51,8.845e-05,2]
[353157410,1739614885454,2217.71,8.845e-05,2]
[353157412,1739614891651,888.07,8.845e-05,2]
[353157413,1739614894817,500.0,8.845e-05,2]
[353157414,1739614899728,1005.94,8.845e-05,2]
[353157415,1739614911251,730.24,8.845e-05,2]
[353157416,1739614919656,1612.27,8.845e-05,2]
[353157417,1739614924277,-151.0,0.00018008,30]
[353157418,1739614924312,-300.0,0.000194,120]
[353157419,1739614924343,-150.0,0.0002,30]
[353157420,1739614924371,-1333.0,0.00020329,120]
[353157421,1739614924402,-300.0,0.00021,120]
[353157422,1739614924438,-1100.0,0.00021917,30]
[353157423,1739614924465,-1100.0,0.00021917,30]
[353157424,1739614924492,-936.70520509,0.00021917,30]
[353157425,1739614924520,-300.0,0.00022,120]
[353157426,1739614924552,-165.809037,0.000225,30]
[353157427,1739614924578,-300.0,0.00023,120]
[353157428,1739614924605,-818.66250577,0.00024,60]
[353157429,1739614924635,-300.0,0.00024,120]
[353157430,1739614924663,-167.80277177,0.00024932,30]
[353157431,1739614924693,-199.999999,0.00025,120]
[353157432,1739614924722,-300.0,0.00025,120]
[353157433,1739614924751,-300.0,0.00026,120]
[353157434,1739614924895,-1107.24732,0.00027,120]
[353157435,1739614924921,-1107.24732,0.00027,120]
[353157436,1739614924947,-1107.24732,0.00027,120]
[353157437,1739614924972,-1107.24732,0.00027,120]
[353157438,1739614924997,-1107.24732,0.00027,120]
[353157439,1739614925023,-1107.24732,0.00027,120]
[353157440,1739614925048,-1107.24732,0.00027,120]
[353157441,1739614925073,-1107.24732,0.00027,120]
[353157442,1739614925098,-1107.24737,0.00027,120]
[353157443,1739614925123,-35467.81357528,0.00027122,120]
[353157444,1739614925148,-6250.0,0.00027397,120]
[353157445,1739614925191,300.0,8.845e-05,2]
[353157446,1739614925791,859.86,8.845e-05,2]
[353157447,1739614935551,-500.0,0.000274,120]
[353157448,1739614935577,-6189.59192869,0.000275,30]
[353157449,1739614935602,-154.532,0.0002779,120]
[353157450,1739614935628,-2847.31,0.000278,30]
[353157451,1739614935653,-337432.01026965,0.000278,120]
[353157452,1739614935679,-1000.0,0.00028,120]
[353157453,1739614935703,-420000.0,0.00028,60]
[353157454,1739614935728,-3199.51989665,0.000286,120]
[353157455,1739614935753,-370.59627407,0.00029,120]
[353157456,1739614935782,-617.51047193,0.00029041,30]
[353157457,1739614935810,-150.5,0.0002927,120]
[353157458,1739614935837,-150.5,0.0002928,120]
[353157459,1739614935864,-273.78,0.0002928,120]
[353157460,1739614935891,-150.5,0.0002929,120]
[353157461,1739614935916,-150.5,0.0002929,120]
[353157462,1739614935943,-500.0,0.000294,120]
[353157463,1739614935968,-3470.7912464,0.00029484,120]
[353157464,1739614935993,-2847.31,0.000298,30]
[353157465,1739614936018,-150.5,0.0002997,120]
[353157466,1739614936045,-557.0,0.0002997,120]
[353157467,1739614936069,-557.0,0.0002997,120]
[353157468,1739614936093,-3830.0,0.0002997,120]
[353157469,1739614936119,-3830.0,0.0002997,120]
[353157470,1739614936143,-150.5,0.0002998,120]
[353157471,1739614936166,-228.38,0.0002998,120]
[353157472,1739614936190,-557.0,0.0002998,120]
[353157473,1739614936215,-557.0,0.0002998,120]
[353157474,1739614936241,-557.0,0.0002998,120]
[353157475,1739614936265,-558.88,0.0002998,120]
[353157476,1739614936290,-3830.0,0.0002998,120]
[353157477,1739614936314,-3830.0,0.0002998,120]
[353157478,1739614936339,-3830.0,0.0002998,120]
[353157479,1739614936363,-3833.05,0.0002998,120]
[353157480,1739614936388,-150.5,0.0002999,120]
[353157481,1739614936412,-150.5,0.0002999,120]
[353157482,1739614936437,-557.0,0.0002999,120]
[353157483,1739614936461,-557.0,0.0002999,120]
[353157484,1739614936484,-557.0,0.0002999,120]
[353157485,1739614936508,-557.0,0.0002999,120]
[353157486,1739614936533,-3830.0,0.0002999,120]
[353157487,1739614936556,-3830.0,0.0002999,120]
[353157488,1739614936580,-3830.0,0.0002999,120]
[353157489,1739614936604,-3830.0,0.0002999,120]
[353157490,1739614936630,-1000.0,0.0003,120]
[353157491,1739614936656,-200.0,0.0003,120]
[353157492,1739614936680,-5000.0,0.0003,120]
[353157493,1739614936707,-9167.69215454,0.0003,120]
[353157494,1739614936732,-14399.71266515,0.0003,120]
[353157495,1739614936757,-151.0,0.0003,120]
[353157496,1739614936781,-10243.64768143,0.0003,120]
[353157497,1739614936915,-151.0,0.0003,120]
[353157498,1739614936940,-200.0,0.0003,30]
[353157499,1739614936965,-7438.69753278,0.0003,30]
[353157500,1739614936990,-7438.69753278,0.0003,120]
[353157501,1739614939384,500.0,8.845e-05,2]
[353157502,1739614943432,500.0,8.845e-05,2]
[353157503,1739614944805,500.0,8.845e-05,2]
[353157504,1739614945706,1674.4,8.845e-05,2]
[353157505,1739614958976,4049.24,8.845e-05,2]
[353157506,1739614960789,1448.61,8.845e-05,2]
[353157507,1739614961732,522.84,8.845e-05,2]
[353157508,1739614969902,858.36,8.845e-05,2]
[353157509,1739614982405,300.0,8.845e-05,2]
[353157510,1739614993818,692.68,8.845e-05,2]
[353157511,1739614994173,500.0,8.845e-05,2]
[353157512,1739615009155,902.04,8.845e-05,2]
[353157513,1739615014514,500.0,8.845e-05,2]
[353157514,1739615020993,1289.32,8.845e-05,2]
[353157515,1739615026232,967.44,8.845e-05,2]
[353157516,1739615032696,10370.38,8.845e-05,2]
[353157517,1739615037513,902.72,8.845e-05,2]
[353157518,1739615043510,300.0,8.845e-05,2]
[353157519,1739615044262,3702.32,8.845e-05,2]
[353157520,1739615053703,1284.7,8.845e-05,2]
[353157521,1739615055182,500.0,8.845e-05,2]
[353157522,1739615055893,2597.16,8.845e-05,2]
[353157523,1739615060131,500.0,8.845e-05,2]
[353157524,1739615064565,5276.41,8.845e-05,2]
[353157525,1739615067757,500.0,8.845e-05,2]
[353157526,1739615069862,2058.83,8.845e-05,2]
[353157527,1739615072291,952.17,8.845e-05,2]
[353157528,1739615078123,511.04,8.845e-05,2]
[353157529,1739615078223,500.0,8.845e-05,2]
[353157530,1739615084584,1272.94,8.845e-05,2]
[353157531,1739615086967,760.94,8.845e-05,2]
[353157532,1739615094775,500.0,8.845e-05,2]
[353157533,1739615096222,500.0,8.845e-05,2]
[353157534,1739615103070,687.83,8.845e-05,2]
[353157535,1739615103886,561.71,8.845e-05,2]
[353157536,1739615104119,300.0,8.845e-05,2]
[353157537,1739615104749,151.0,0.00018,30]
[353157538,1739615106295,2805.23,8.845e-05,2]
[353157540,1739615109829,3331.03,8.845e-05,2]
[353157542,1739615113130,1513.77,8.845e-05,2]
[353157543,1739615114923,2732.95,8.845e-05,2]
[353157544,1739615115300,879.28,8.845e-05,2]
[353157545,1739615120486,1908.53,8.845e-05,2]
[353157548,1739615123872,3864.89,8.845e-05,2]
[353157550,1739615127690,500.0,8.845e-05,2]
[353157551,1739615127976,2125.31,8.845e-05,2]
[353157552,1739615132884,7239.23,8.845e-05,2]
[353157555,1739615137930,500.0,8.845e-05,2]
[353157556,1739615139715,500.0,8.845e-05,2]
[353157558,1739615152907,500.0,8.845e-05,2]
[353157559,1739615153645,1545.1,8.845e-05,2]
[353157561,1739615154589,699.81,8.845e-05,2]
[353157563,1739615157803,500.0,8.845e-05,2]
[353157564,1739615159925,500.0,8.845e-05,2]
[353157565,1739615162628,500.0,8.845e-05,2]
[353157566,1739615162847,300.0,8.845e-05,2]
[353157568,1739615163337,500.0,8.845e-05,2]
[353157569,1739615166046,500.0,8.845e-05,2]
[353157570,1739615168655,500.0,8.845e-05,2]
[353157572,1739615173727,894.56,8.845e-05,2]
[353157574,1739615176641,500.0,8.845e-05,2]
[353157575,1739615178115,1538.23,8.845e-05,2]
[353157576,1739615178247,5565.72,8.845e-05,2]
[353157579,1739615189504,500.0,8.845e-05,2]
[353157580,1739615190194,2987.17,8.845e-05,2]
[353157581,1739615195378,501.05,8.845e-05,2]
[353157582,1739615198707,2493.9,8.845e-05,2]
[353157584,1739615199214,500.0,8.845e-05,2]
[353157585,1739615201630,500.0,8.845e-05,2]
[353157586,1739615202262,4228.84,8.845e-05,2]
[353157587,1739615204395,500.0,8.845e-05,2]
[353157588,1739615207814,500.0,8.845e-05,2]
[353157589,1739615210259,572.29,8.845e-05,2]
[353157590,1739615211710,568.0,8.845e-05,2]
[353157591,1739615218953,1033.78,8.845e-05,2]
[353157592,1739615220546,2349.81,8.845e-05,2]
[353157594,1739615222398,300.0,8.845e-05,2]
[353157595,1739615222933,502.0148947,8.845e-05,2]
[353157596,1739615224141,230.03189126,8.845e-05,2]
[353157597,1739615224771,500.0,8.845e-05,2]
[353157598,1739615226134,500.0,8.845e-05,2]
[353157599,1739615226569,663.82,8.845e-05,2]
[353157600,1739615228009,1273.36,8.845e-05,2]
[353157601,1739615231794,3213.71,8.845e-05,2]
[353157603,1739615236782,500.0,8.845e-05,2]
[353157605,1739615241952,500.0,8.845e-05,2]
[353157606,1739615247357,855.36,8.845e-05,2]
[353157607,1739615247571,690.55,8.845e-05,2]
[353157608,1739615256170,521.31376231,8.845e-05,2]
[353157612,1739615259788,500.0,8.845e-05,2]
[353157614,1739615263054,500.0,8.845e-05,2]
[353157615,1739615263158,1235.59,8.845e-05,2]
[353157616,1739615264817,9938.28,8.845e-05,2]
[353157617,1739615266660,500.0,8.845e-05,2]
[353157619,1739615267426,1083.75,8.845e-05,2]
[353157620,1739615268251,500.0,8.845e-05,2]
[353157624,1739615272696,500.0,8.845e-05,2]
[353157626,1739615275246,500.0,8.845e-05,2]
[353157627,1739615277320,1137.52,8.845e-05,2]
[353157628,1739615282655,673.04,8.845e-05,2]
[353157629,1739615283511,300.0,8.845e-05,2]
[353157630,1739615283973,500.0,8.845e-05,2]
[353157631,1739615284795,3548.06,8.845e-05,2]
[353157632,1739615287126,2447.63,8.845e-05,2]
[353157633,1739615287476,500.0,8.845e-05,2]
[353157634,1739615289219,500.0,8.845e-05,2]
[353157635,1739615293223,500.0,8.845e-05,2]
[353157638,1739615295396,2488.95,8.845e-05,2]
[353157639,1739615297275,5056.56,8.845e-05,2]
[353157641,1739615305003,1467.78,8.845e-05,2]
[353157642,1739615308475,1973.04,8.845e-05,2]
[353157643,1739615310344,500.0,8.845e-05,2]
[353157644,1739615311216,500.0,8.845e-05,2]
[353157650,1739615316387,1219.9,8.845e-05,2]
[353157653,1739615316656,500.0,8.845e-05,2]
[353157659,1739615320324,500.0,8.845e-05,2]
[353157664,1739615324831,729.23,8.845e-05,2]
[353157665,1739615325207,500.0,8.845e-05,2]
[353157671,1739615329029,500.0,8.845e-05,2]
[353157672,1739615338414,514.9,8.845e-05,2]
[353157673,1739615338591,6039.49,8.845e-05,2]
[353157674,1739615338690,500.0,8.845e-05,2]
[353157675,1739615339576,2688.35,8.845e-05,2]
[353157676,1739615342409,300.0,8.845e-05,2]
[353157677,1739615346247,934.79,8.845e-05,2]
[353157678,1739615348511,2619.07,8.845e-05,2]
[353157679,1739615356484,3703.85,8.845e-05,2]
[353157680,1739615356520,1829.0,8.845e-05,2]
[353157681,1739615360416,500.0,8.845e-05,2]
[353157682,1739615362086,26738.37,8.845e-05,2]
[353157683,1739615363849,500.0,8.845e-05,2]
[353157684,1739615364316,6937.59,8.845e-05,2]
[353157685,1739615364985,842.64,8.845e-05,2]
[353157686,1739615366976,3192.24,8.845e-05,2]
[353157687,1739615375305,1418.71,8.845e-05,2]
[353157688,1739615375390,500.0,8.845e-05,2]
[353157689,1739615378022,250.51698514,8.845e-05,2]
[353157690,1739615378132,24900.0,7.901e-05,2]
[353157691,1739615378164,3518.2,8.845e-05,2]
[353157692,1739615383943,500.0,8.845e-05,2]
[353157693,1739615384886,2036.75,8.845e-05,2]
[353157694,1739615385885,1992.99,8.845e-05,2]
[353157695,1739615389289,500.0,8.845e-05,2]
[353157696,1739615390339,500.0,8.845e-05,2]